fUST/lending_fUST_20240607
["ID","MTS","AMOUNT","RATE_DAILY","PERIOD"]
[328725822,1717735388281,500.0,0.00029785,60]
[328725823,1717735388312,774.69,0.00029785,60]
[328725824,1717735388341,395.1614315,0.00029785,60]
[328725825,1717735388386,500.0,0.00029785,60]
[328725826,1717735388523,4891.41,0.00029785,60]
[328725827,1717735388554,500.0,0.00029785,60]
[328725828,1717735388584,774.69,0.00029785,60]
[328725829,1717735388651,451.37576035,0.00029785,60]
[328725830,1717735388776,4891.41,0.00029785,60]
[328725831,1717735388828,774.69,0.00029785,60]
[328725832,1717735389042,4891.41,0.00029785,60]
[328725833,1717735389108,774.69,0.00029785,60]
[328725834,1717735389139,500.0,0.00029785,60]
[328725835,1717735389327,4891.41,0.00029785,60]
[328725836,1717735389369,774.69,0.00029785,60]
[328725837,1717735389407,500.0,0.00029785,60]
[328725838,1717735389542,870.3,0.00029785,60]
[328725839,1717735389619,4891.41,0.00029785,60]
[328725840,1717735389651,774.69,0.00029785,60]
[328725841,1717735389700,500.0,0.00029785,60]
[328725842,1717735389988,4891.41,0.00029785,60]
[328725843,1717735390020,774.69,0.00029785,60]
[328725844,1717735390052,500.0,0.00029785,60]
[328725845,1717735390082,870.3,0.00029785,60]
[328725846,1717735390175,4891.41,0.00029785,60]
[328725847,1717735390232,500.0,0.00029785,60]
[328725848,1717735390404,774.69,0.00029785,60]
[328725849,1717735390448,4891.52168075,0.00029785,60]
[328725850,1717735390478,870.3,0.00029785,60]
[328725851,1717735390530,500.0,0.00029785,60]
[328725852,1717735390589,774.69,0.00029785,60]
[328725853,1717735390749,870.3,0.00029785,60]
[328725854,1717735390799,500.0,0.00029785,60]
[328725855,1717735390996,774.69,0.00029785,60]
[328725856,1717735391060,870.3,0.00029785,60]
[328725857,1717735391150,364.60243109,0.00029785,60]
[328725858,1717735391229,774.69,0.00029785,60]
[328725859,1717735391419,870.3,0.00029785,60]
[328725860,1717735391513,774.69,0.00029785,60]
[328725861,1717735391681,870.3,0.00029785,60]
[328725862,1717735391932,870.3,0.00029785,60]
[328725863,1717735392112,774.69,0.00029785,60]
[328725864,1717735392197,870.3,0.00029785,60]
[328725865,1717735392706,774.69,0.00029785,60]
[328725866,1717735392796,870.3,0.00029785,60]
[328725867,1717735392970,774.69,0.00029785,60]
[328725868,1717735393083,870.3,0.00029785,60]
[328725869,1717735393251,774.83065453,0.00029785,60]
[328725870,1717735393340,870.3,0.00029785,60]
[328725871,1717735393636,870.3,0.00029785,60]
[328725872,1717735393921,870.3,0.00029785,60]
[328725873,1717735394186,870.3,0.00029785,60]
[328725874,1717735394215,500.0,0.00029785,60]
[328725875,1717735394459,870.3,0.00029785,60]
[328725876,1717735394502,500.0,0.00029785,60]
[328725877,1717735394917,500.0,0.00029785,60]
[328725878,1717735395078,870.3,0.00029785,60]
[328725879,1717735395405,513.79955463,0.00029785,60]
[328725880,1717735395433,870.3,0.00029785,60]
[328725881,1717735395503,500.0,0.00029785,60]
[328725882,1717735395582,500.0,0.00029785,60]
[328725883,1717735395766,500.0,0.00029785,60]
[328725884,1717735395864,500.0,0.00029785,60]
[328725885,1717735396027,870.3,0.00029785,60]
[328725886,1717735396055,500.0,0.00029785,60]
[328725887,1717735396128,500.0,0.00029785,60]
[328725888,1717735396309,870.3,0.00029785,60]
[328725889,1717735396396,500.0,0.00029785,60]
[328725890,1717735396578,870.3,0.00029785,60]
[328725891,1717735396671,500.0,0.00029785,60]
[328725892,1717735396700,500.0,0.00029785,60]
[328725893,1717735396956,500.0,0.00029785,60]
[328725894,1717735397013,870.3,0.00029785,60]
[328725895,1717735397292,870.3,0.00029785,60]
[328725896,1717735397322,500.0,0.00029785,60]
[328725897,1717735397559,870.4488974,0.00029785,60]
[328725898,1717735397591,500.0,0.00029785,60]
[328725899,1717735397626,608.0972015,0.00029785,60]
[328725900,1717735397841,520.50755071,0.00029785,60]
[328725901,1717735399751,500.0,0.00029785,60]
[328725902,1717735399931,500.0,0.00029785,60]
[328725903,1717735400017,500.0,0.00029785,60]
[328725904,1717735400133,500.0,0.00029785,60]
[328725905,1717735400190,506.44007218,0.00029785,60]
[328725906,1717735400225,500.0,0.00029785,60]
[328725907,1717735400296,500.0,0.00029785,60]
[328725908,1717735400611,508.78795047,0.00029785,60]
[328725909,1717735400828,500.0,0.00029785,60]
[328725910,1717735401058,924.08,0.00029785,60]
[328725911,1717735401155,507.35530988,0.00029785,60]
[328725912,1717735401346,924.08,0.00029785,60]
[328725913,1717735401955,924.08,0.00029785,60]
[328725914,1717735401990,500.0,0.00029785,60]
[328725915,1717735402229,924.08,0.00029785,60]
[328725916,1717735402260,500.0,0.00029785,60]
[328725917,1717735402523,924.08,0.00029785,60]
[328725918,1717735402582,500.0,0.00029785,60]
[328725919,1717735402834,924.08,0.00029785,60]
[328725920,1717735402866,517.94857381,0.00029785,60]
[328725921,1717735403072,924.08,0.00029785,60]
[328725922,1717735403670,924.08,0.00029785,60]
[328725923,1717735403943,924.08,0.00029785,60]
[328725924,1717735404390,924.08,0.00029785,60]
[328725925,1717735404660,924.08,0.00029785,60]
[328725926,1717735404942,924.08,0.00029785,60]
[328725927,1717735405212,924.08,0.00029785,60]
[328725928,1717735405840,924.08,0.00029785,60]
[328725929,1717735406137,924.08,0.00029785,60]
[328725930,1717735406428,924.08,0.00029785,60]
[328725931,1717735406711,924.08,0.00029785,60]
[328725932,1717735406979,924.08,0.00029785,60]
[328725933,1717735407107,4248.44,0.00029785,60]
[328725934,1717735407278,924.08,0.00029785,60]
[328725935,1717735407405,4248.44,0.00029785,60]
[328725936,1717735407541,924.08,0.00029785,60]
[328725937,1717735407674,1668.68659247,0.00029785,60]
[328725938,1717735476054,411.42673703,9.999e-05,2]
[328725939,1717735613357,300.6044961,0.0001384,2]
[328725940,1717735753031,176.37494992,9.999e-05,2]
[328725941,1717735753066,75.94917831,9.999e-05,2]
[328725945,1717735767108,-187.30405388,0.00014457,2]
[328725946,1717735767129,-2112.86517201,0.00014458,2]
[328725947,1717735767150,-1832.37137411,0.00014459,2]
[328725970,1717735832588,-1849.57185142,0.00014898,2]
[328726003,1717735838698,-133.32867905,0.00014898,2]
[328726006,1717735838708,-1088.97506384,0.00014899,2]
[328726008,1717735838723,-3426.50560346,0.00014899,2]
[328726350,1717735842392,-3400.54456336,0.00014899,2]
[328726352,1717735842402,-1014.53661475,0.00014998,2]
[328726354,1717735842411,-13411.33284168,0.00014998,2]
[328726501,1717735843942,-7837.48967612,0.00014998,2]
[328726503,1717735843953,-1260.01527353,0.00014999,2]
[328726505,1717735843963,-287.31807298,0.00015,2]
[328726507,1717735843973,-945.46842875,0.00015,2]
[328726509,1717735843982,-2080.49825735,0.000179,2]
[328726511,1717735843992,-10612.46687919,0.00017962,2]
[328726513,1717735844001,-1035.88327881,0.00018,2]
[328726515,1717735844011,-204.02091726,0.00018,2]
[328726517,1717735844020,-150.37765136,0.00018776,2]
[328726519,1717735844030,-2763.22163269,0.0001887,2]
[328726521,1717735844039,-4236.94913646,0.00018871,2]
[328726523,1717735844049,-175.54863319,0.00019,2]
[328726525,1717735844058,-167.46533,0.00019178,2]
[328726527,1717735844068,-168.737676,0.00019178,2]
[328726529,1717735844078,-167.3934743,0.00019178,2]
[328726531,1717735844088,-2080.49825734,0.00019521,2]
[328726533,1717735844098,-975.79783004,0.0002,2]
[328726535,1717735844107,-154.95351395,0.0002,2]
[328726538,1717735844117,-472.0249342,0.0002004,2]
[328726539,1717735844127,-590.27173926,0.0002066,7]
[328726542,1717735844136,-2080.49825734,0.00021141,2]
[328726544,1717735844146,-22404.07948526,0.00021498,2]
[328726546,1717735844156,-3000.0,0.000215,2]
[328726548,1717735844166,-662.48,0.000215,3]
[328726550,1717735844175,-220.82,0.00021503,3]
[328726552,1717735844185,-3000.0,0.0002151,2]
[328726554,1717735844195,-500.0,0.00021512,2]
[328726556,1717735844205,-500.0,0.00021512,2]
[328726558,1717735844214,-500.0,0.00021512,2]
[328726560,1717735844226,-504.13720944,0.00021512,2]
[328726562,1717735844236,-787.06435358,0.00021512,2]
[328726564,1717735844246,-396.62708768,0.00021512,2]
[328726566,1717735844256,-787.06435358,0.00021512,2]
[328726568,1717735844266,-500.0,0.00021512,2]
[328726570,1717735844276,-454.47616165,0.00021512,2]
[328726572,1717735844285,-455.87476735,0.00021512,2]
[328726574,1717735844295,-483.66569445,0.00021512,2]
[328726576,1717735844304,-787.06435358,0.00021512,2]
[328726578,1717735844314,-500.0,0.00021512,2]
[328726580,1717735844323,-787.06435358,0.00021512,2]
[328726582,1717735844333,-500.0,0.00021512,2]
[328726584,1717735844343,-787.06435358,0.00021512,2]
[328726586,1717735844353,-787.06435358,0.00021512,2]
[328726588,1717735844362,-500.0,0.00021512,2]
[328726590,1717735844372,-787.06435358,0.00021512,2]
[328726592,1717735844381,-167.07545715,0.00021512,2]
[328726594,1717735844391,-787.06435358,0.00021512,2]
[328726596,1717735844401,-787.06435358,0.00021512,2]
[328726598,1717735844411,-500.0,0.00021512,2]
[328726600,1717735844420,-787.06435358,0.00021512,2]
[328726602,1717735844430,-787.06435358,0.00021512,2]
[328726604,1717735844440,-787.06435358,0.00021512,2]
[328726606,1717735844449,-787.06435358,0.00021512,2]
[328726608,1717735844458,-787.06435358,0.00021512,2]
[328726610,1717735844468,-787.06435358,0.00021512,2]
[328726612,1717735844478,-787.06435358,0.00021512,2]
[328726614,1717735844487,-787.06435358,0.00021512,2]
[328726616,1717735844496,-787.06435358,0.00021512,2]
[328726618,1717735844506,-787.06435358,0.00021512,2]
[328726620,1717735844515,-787.06435358,0.00021512,2]
[328726622,1717735844524,-787.06435358,0.00021512,2]
[328726624,1717735844534,-787.06435358,0.00021512,2]
[328726643,1717735844678,-787.06435358,0.00021512,2]
[328726646,1717735844724,-787.06435358,0.00021512,2]
[328726648,1717735844733,-787.06435358,0.00021512,2]
[328726650,1717735844743,-787.06435358,0.00021512,2]
[328726652,1717735844752,-787.06435358,0.00021512,2]
[328726654,1717735844761,-787.06435358,0.00021512,2]
[328726656,1717735844771,-787.06435358,0.00021512,2]
[328726658,1717735844780,-787.06435358,0.00021512,2]
[328726660,1717735844789,-787.06435358,0.00021512,2]
[328726662,1717735844799,-787.06435358,0.00021512,2]
[328726664,1717735844809,-787.06435358,0.00021512,2]
[328726666,1717735844819,-787.06435358,0.00021512,2]
[328726668,1717735844828,-787.06435358,0.00021512,2]
[328726670,1717735844838,-787.06435358,0.00021512,2]
[328726672,1717735844847,-787.06435358,0.00021512,2]
[328726674,1717735844856,-787.06435358,0.00021512,2]
[328726676,1717735844865,-787.06435358,0.00021512,2]
[328726678,1717735844875,-787.06435358,0.00021512,2]
[328726680,1717735844885,-787.06435358,0.00021512,2]
[328726682,1717735844895,-787.06435358,0.00021512,2]
[328726684,1717735844904,-787.06435358,0.00021512,2]
[328726686,1717735844913,-787.06435358,0.00021512,2]
[328726688,1717735844923,-151.0,0.00021513,2]
[328726690,1717735844932,-151.0,0.00021513,2]
[328726692,1717735844942,-784.334495,0.00021513,2]
[328726694,1717735844951,-784.334495,0.00021513,2]
[328726696,1717735844961,-198.85091,0.00021513,2]
[328726698,1717735844971,-151.0,0.00021513,2]
[328726700,1717735844980,-198.85091,0.00021513,2]
[328726701,1717735844990,-151.0,0.00021514,2]
[328726703,1717735844999,-304.592302,0.00021514,2]
[328726704,1717735845008,-304.592302,0.00021514,2]
[328726706,1717735845019,-3000.0,0.0002152,2]
[328726707,1717735845028,-151.0,0.0002152,2]
[328726709,1717735845038,-151.0,0.0002152,2]
[328726711,1717735845047,-151.0,0.0002153,2]
[328726712,1717735845056,-151.0,0.0002153,2]
[328726714,1717735845066,-3000.0,0.0002153,2]
[328726715,1717735845076,-151.0,0.0002153,2]
[328726717,1717735845085,-151.0,0.0002153,2]
[328726719,1717735845094,-151.0,0.0002153,2]
[328726720,1717735845104,-807.293853,0.0002153,2]
[328726722,1717735845113,-807.293853,0.0002153,2]
[328726724,1717735845122,-151.0,0.0002153,2]
[328726725,1717735845131,-233.249626,0.0002153,2]
[328726727,1717735845140,-233.249626,0.0002153,2]
[328726728,1717735845149,-151.0,0.0002153,2]
[328726730,1717735845159,-304.592302,0.0002153,2]
[328726732,1717735845168,-304.592302,0.0002153,2]
[328726734,1717735845178,-784.334495,0.0002153,2]
[328726735,1717735845188,-784.334495,0.0002153,2]
[328726737,1717735845197,-198.85091,0.0002153,2]
[328726739,1717735845207,-155.482578,0.0002153,2]
[328726740,1717735845216,-3000.0,0.0002154,2]
[328726742,1717735845226,-151.0,0.0002154,2]
[328726743,1717735845235,-151.0,0.0002154,2]
[328726745,1717735845244,-5357.647693,0.0002155,2]
[328726747,1717735845254,-151.0,0.0002155,2]
[328726749,1717735845263,-161.738151,0.00021644,2]
[328726750,1717735845272,-3595.31562667,0.00021918,7]
[328726752,1717735845281,-151.0,0.00021918,2]
[328726754,1717735845292,-166.666666,0.00021918,2]
[328726755,1717735845301,-151.56823,0.00021918,2]
[328726757,1717735845310,-17172.2823782,0.00021918,2]
[328726759,1717735845319,-151.0,0.00021918,2]
[328726760,1717735845329,-151.0,0.00021918,2]
[328726762,1717735845338,-230.922931,0.00021918,2]
[328726764,1717735845347,-151.0,0.00021918,2]
[328726766,1717735845356,-151.0,0.00021918,2]
[328726767,1717735845365,-151.0,0.00021918,2]
[328726769,1717735845374,-151.0,0.00021918,2]
[328726771,1717735845383,-385.360549,0.00021918,2]
[328726773,1717735845393,-151.0,0.00021918,2]
[328726774,1717735845402,-807.293853,0.00021918,2]
[328726776,1717735845413,-807.293853,0.00021918,2]
[328726778,1717735845422,-151.0,0.00021918,2]
[328726780,1717735845432,-233.249626,0.00021918,2]
[328726781,1717735845442,-233.249626,0.00021918,2]
[328726783,1717735845451,-151.0,0.00021918,2]
[328726785,1717735845460,-304.592302,0.00021918,2]
[328726787,1717735845469,-184.008579,0.00021918,2]
[328726788,1717735845478,-304.592302,0.00021918,2]
[328726790,1717735845487,-151.0,0.00021918,2]
[328726792,1717735845496,-784.334495,0.00021918,2]
[328726793,1717735845506,-784.334495,0.00021918,2]
[328726795,1717735845516,-198.85091,0.00021918,2]
[328726797,1717735845525,-624.38135628,0.000221,2]
[328726798,1717735845535,-166.666666,0.00022431,2]
[328726800,1717735845544,-254.62875625,0.00022485,2]
[328726802,1717735845553,-2080.49825734,0.00022762,2]
[328726804,1717735845563,-153.0,0.00022856,2]
[328726805,1717735845573,-161.2971887,0.00022856,2]
[328726807,1717735845582,-441.64,0.00022873,3]
[328726809,1717735845591,-166.666666,0.00022944,2]
[328726811,1717735845601,-209.16058555,0.00023,2]
[328726813,1717735845610,-1178.04029101,0.00023,2]
[328726814,1717735845619,-1000.0,0.00023,2]
[328726816,1717735845628,-151.0,0.00023,2]
[328726818,1717735845638,-154.95351395,0.00023,2]
[328726820,1717735845652,-297.0634883,0.00023041,2]
[328726821,1717735845661,-153.0000001,0.00023041,2]
[328726823,1717735845671,-153.0,0.00023041,2]
[328726825,1717735845680,-153.0,0.00023041,2]
[328726827,1717735845690,-408.8279073,0.00023041,2]
[328726828,1717735845699,-205.1978842,0.00023056,2]
[328726830,1717735845709,-1159.81019499,0.00023109,2]
[328726832,1717735845723,-252.32412823,0.00023421,2]
[328726834,1717735845733,-244.97632607,0.00023422,2]
[328726835,1717735845742,-154.6126418,0.00023425,2]
[328726837,1717735845751,-166.666666,0.00023456,2]
[328726839,1717735845761,-248.187799,0.00023632,2]
[328726841,1717735845770,-213.683392,0.00023632,2]
[328726842,1717735845779,-153.0,0.00023699,2]
[328726844,1717735845788,-153.0,0.00023699,2]
[328726846,1717735845798,-205.1978842,0.00023699,2]
[328726848,1717735845810,-205.1978842,0.00023699,2]
[328726849,1717735845819,-153.0,0.00023699,2]
[328726851,1717735845829,-205.1978842,0.00023699,2]
[328726853,1717735845838,-205.1978842,0.00023699,2]
[328726854,1717735845847,-205.1978842,0.00023699,2]
[328726856,1717735845857,-205.1978842,0.00023699,2]
[328726858,1717735845867,-205.1978842,0.00023699,2]
[328726860,1717735845878,-205.1978842,0.00023699,2]
[328726861,1717735845888,-205.1978842,0.00023699,2]
[328726863,1717735845898,-387.9175887,0.00023699,2]
[328726865,1717735845908,-170.37877217,0.0002382,2]
[328726867,1717735845918,-15246.40790456,0.0002383,2]
[328726869,1717735845928,-245.61112,0.0002383,2]
[328726870,1717735845938,-151.0,0.0002383,2]
[328726872,1717735845947,-151.0,0.0002383,2]
[328726874,1717735845956,-151.0,0.0002383,2]
[328726876,1717735845966,-151.0,0.0002383,2]
[328726877,1717735845977,-151.0,0.0002383,2]
[328726879,1717735845986,-151.0,0.0002383,2]
[328726881,1717735845995,-385.360549,0.0002383,2]
[328726883,1717735846004,-151.0,0.0002383,2]
[328726884,1717735846015,-807.293853,0.0002383,2]
[328726886,1717735846024,-807.293853,0.0002383,2]
[328726888,1717735846033,-151.0,0.0002383,2]
[328726890,1717735846050,-233.249626,0.0002383,2]
[328726892,1717735846063,-233.249626,0.0002383,2]
[328726894,1717735846072,-177.325215,0.0002383,2]
[328726896,1717735846082,-304.592302,0.0002383,2]
[328726897,1717735846092,-304.592302,0.0002383,2]
[328726899,1717735846102,-151.0,0.0002383,2]
[328726901,1717735846111,-784.334495,0.0002383,2]
[328726903,1717735846122,-784.334495,0.0002383,2]
[328726904,1717735846131,-198.85091,0.0002383,2]
[328726906,1717735846141,-19734.04724468,0.0002385,2]
[328726908,1717735846151,-304.592302,0.0002385,2]
[328726910,1717735846160,-304.592302,0.0002385,2]
[328726911,1717735846170,-151.0,0.0002385,2]
[328726913,1717735846180,-784.334495,0.0002385,2]
[328726915,1717735846190,-784.334495,0.0002385,2]
[328726917,1717735846199,-198.85091,0.0002385,2]
[328726918,1717735846209,-151.0,0.000239,2]
[328726920,1717735846220,-151.0,0.000239,2]
[328726922,1717735846229,-151.0,0.000239,2]
[328726923,1717735846239,-385.360549,0.000239,2]
[328726925,1717735846249,-151.0,0.000239,2]
[328726927,1717735846260,-807.293853,0.000239,2]
[328726929,1717735846270,-807.293853,0.000239,2]
[328726931,1717735846279,-151.0,0.000239,2]
[328726932,1717735846289,-233.249626,0.000239,2]
[328726934,1717735846299,-233.249626,0.000239,2]
[328726936,1717735846309,-166.666666,0.00023969,2]
[328726938,1717735846319,-1005.37378427,0.00024,2]
[328726939,1717735846328,-151.0,0.00024,2]
[328726941,1717735846338,-278.094281,0.00024,2]
[328726943,1717735846349,-200.0,0.0002411,2]
[328726945,1717735846359,-506.012,0.00024163,2]
[328726946,1717735846369,-164.378,0.00024163,2]
[328726948,1717735846379,-9585.05846893,0.00024198,2]
[328726950,1717735846388,-151.0,0.00024198,2]
[328726952,1717735846399,-646.99050975,0.00024264,2]
[328726954,1717735846409,-2080.49825734,0.00024382,2]
[328726956,1717735846419,-153.0,0.00024384,2]
[328726958,1717735846429,-153.0,0.00024384,2]
[328726960,1717735846439,-153.0,0.00024384,2]
[328726962,1717735846448,-153.0,0.00024384,2]
[328726964,1717735846458,-762.66822182,0.000244,2]
[328726966,1717735846467,-152.76341288,0.0002441,3]
[328726968,1717735846478,-156.5738761,0.0002441,2]
[328726970,1717735846489,-1166.31987663,0.00024457,3]
[328726972,1717735846499,-233.249626,0.00024457,2]
[328726973,1717735846509,-233.249626,0.00024457,2]
[328726974,1717735846518,-304.592302,0.00024457,2]
[328726975,1717735846527,-304.592302,0.00024457,2]
[328726976,1717735846537,-151.0,0.00024457,2]
[328726977,1717735846546,-784.334495,0.00024457,2]
[328726978,1717735846556,-784.334495,0.00024457,2]
[328726979,1717735846565,-198.85091,0.00024457,2]
[328726980,1717735846574,-151.0,0.00024482,2]
[328726981,1717735846584,-151.0,0.00024482,2]
[328726982,1717735846593,-151.0,0.00024482,2]
[328726983,1717735846603,-385.360549,0.00024482,2]
[328726984,1717735846612,-151.0,0.00024482,2]
[328726985,1717735846621,-807.293853,0.00024482,2]
[328726986,1717735846631,-807.293853,0.00024482,2]
[328726987,1717735846642,-151.0,0.00024482,2]
[328726988,1717735846653,-166.666666,0.00024482,2]
[328726989,1717735846662,-166.666666,0.00024493,2]
[328726990,1717735846672,-151.0,0.00024504,2]
[328726991,1717735846682,-583.9151397,0.00024521,2]
[328726992,1717735846691,-584.4397366,0.00024521,2]
[328726993,1717735846700,-153.0,0.00024521,2]
[328726994,1717735846709,-151.0,0.00024544,2]
[328726995,1717735846720,-151.0,0.00024544,2]
[328726996,1717735846730,-154.48255,0.00024544,2]
[328726997,1717735846739,-151.0,0.00024544,2]
[328726998,1717735846749,-151.0,0.00024544,2]
[328726999,1717735846758,-385.360549,0.00024544,2]
[328727001,1717735846767,-151.0,0.00024544,2]
[328727002,1717735846776,-807.293853,0.00024544,2]
[328727003,1717735846786,-807.293853,0.00024544,2]
[328727005,1717735846796,-151.0,0.00024544,2]
[328727007,1717735846805,-233.249626,0.00024544,2]
[328727009,1717735846815,-233.249626,0.00024544,2]
[328727011,1717735846825,-2000.0,0.00024556,2]
[328727013,1717735846834,-151.0,0.00024557,2]
[328727015,1717735846843,-151.0,0.00024557,2]
[328727017,1717735846853,-270.0,0.000246,2]
[328727019,1717735846862,-34933.04483189,0.00024635,2]
[328727021,1717735846872,-251.009278,0.00024635,2]
[328727023,1717735846883,-151.0,0.00024635,2]
[328727025,1717735846892,-151.0,0.00024635,2]
[328727027,1717735846902,-151.0,0.00024635,2]
[328727029,1717735846911,-385.360549,0.00024635,2]
[328727031,1717735846921,-151.0,0.00024635,2]
[328727033,1717735846931,-807.293853,0.00024635,2]
[328727035,1717735846941,-807.293853,0.00024635,2]
[328727037,1717735846950,-151.0,0.00024635,2]
[328727039,1717735846959,-233.249626,0.00024635,2]
[328727041,1717735846970,-233.249626,0.00024635,2]
[328727043,1717735846980,-304.592302,0.00024635,2]
[328727045,1717735846989,-304.592302,0.00024635,2]
[328727047,1717735846998,-252.275062,0.00024635,2]
[328727049,1717735847007,-784.334495,0.00024635,2]
[328727051,1717735847017,-784.334495,0.00024635,2]
[328727053,1717735847026,-198.85091,0.00024635,2]
[328727055,1717735847036,-153.0,0.00024647,2]
[328727057,1717735847046,-153.0,0.00024648,2]
[328727059,1717735847056,-162.99512303,0.00024655,2]
[328727061,1717735847065,-268.45500091,0.00024655,2]
[328727063,1717735847075,-287.15414919,0.00024655,2]
[328727065,1717735847085,-270.0388831,0.00024655,2]
[328727067,1717735847095,-164.8546689,0.00024655,2]
[328727069,1717735847104,-241.27693457,0.00024655,2]
[328727071,1717735847114,-304.46444417,0.00024655,2]
[328727073,1717735847123,-155.51907551,0.00024655,2]
[328727075,1717735847133,-208.24002311,0.00024655,2]
[328727077,1717735847142,-255.30217643,0.00024655,2]
[328727079,1717735847152,-435.0,0.00024655,2]
[328727081,1717735847162,-174.50997204,0.00024655,2]
[328727083,1717735847171,-442.75883193,0.00024655,2]
[328727085,1717735847181,-247.00108117,0.00024655,2]
[328727087,1717735847191,-300.69252663,0.00024655,2]
[328727089,1717735847200,-286.3270585,0.00024655,2]
[328727091,1717735847210,-8979.86375108,0.00024655,2]
[328727094,1717735847220,-155.35197256,0.00024655,2]
[328727096,1717735847230,-155.74921061,0.00024655,2]
[328727098,1717735847239,-204.92192061,0.00024655,2]
[328727100,1717735847248,-6686.18485663,0.00024655,2]
[328727102,1717735847257,-185.30449836,0.00024655,2]
[328727103,1717735847267,-2036.10483651,0.00024655,2]
[328727106,1717735847276,-155.36369356,0.00024655,2]
[328727107,1717735847286,-173.25634763,0.00024655,2]
[328727110,1717735847296,-195.55818135,0.00024655,2]
[328727112,1717735847305,-155.3526917,0.00024655,2]
[328727114,1717735847314,-256.46893408,0.00024655,2]
[328727116,1717735847324,-301.07236457,0.00024655,2]
[328727118,1717735847334,-308.97508739,0.00024655,2]
[328727120,1717735847344,-220.76777023,0.00024655,2]
[328727122,1717735847353,-236.5543734,0.00024655,2]
[328727124,1717735847363,-10483.96462236,0.00024655,2]
[328727126,1717735847373,-3070.8095879,0.00024655,2]
[328727128,1717735847383,-151.0,0.00024655,2]
[328727130,1717735847393,-151.0,0.00024655,2]
[328727132,1717735847403,-385.360549,0.00024655,2]
[328727134,1717735847413,-151.0,0.00024655,2]
[328727136,1717735847423,-807.293853,0.00024655,2]
[328727138,1717735847432,-807.293853,0.00024655,2]
[328727140,1717735847441,-265.950479,0.00024655,2]
[328727142,1717735847451,-233.249626,0.00024655,2]
[328727144,1717735847460,-233.249626,0.00024655,2]
[328727146,1717735847471,-304.592302,0.00024655,2]
[328727148,1717735847481,-304.592302,0.00024655,2]
[328727150,1717735847491,-784.334495,0.00024655,2]
[328727152,1717735847500,-784.334495,0.00024655,2]
[328727154,1717735847510,-198.85091,0.00024655,2]
[328727156,1717735847520,-413.11955387,0.00024656,2]
[328727158,1717735847529,-2225.36328369,0.00024656,2]
[328727160,1717735847540,-166.666666,0.00024656,2]
[328727162,1717735847550,-2325.66275281,0.00024656,2]
[328727164,1717735847559,-155.10605643,0.00024656,2]
[328727166,1717735847569,-151.0,0.00024656,2]
[328727168,1717735847579,-385.360549,0.00024656,2]
[328727170,1717735847588,-160.91091,0.00024656,2]
[328727172,1717735847597,-807.293853,0.00024656,2]
[328727174,1717735847607,-807.293853,0.00024656,2]
[328727176,1717735847616,-233.249626,0.00024656,2]
[328727178,1717735847626,-233.249626,0.00024656,2]
[328727193,1717735847767,-304.592302,0.00024656,2]
[328727195,1717735847776,-304.592302,0.00024656,2]
[328727197,1717735847786,-784.334495,0.00024656,2]
[328727199,1717735847795,-784.334495,0.00024656,2]
[328727201,1717735847805,-198.85091,0.00024656,2]
[328727203,1717735847814,-504.69195701,0.00024657,2]